bitfinex/quotes_BTCUSD_20230117
["timestamp","ask_amount","ask_price","bid_price","bid_amount"]
[1673972986475,0.94032571,21168.0,21167.0,0.01]
[1673972986726,1.15244911,21168.0,21167.0,0.01]
[1673972987006,2.09727111,21168.0,21167.0,0.01]
[1673972987277,2.32345703,21168.0,21167.0,0.01]
[1673972987539,3.58359573,21168.0,21167.0,0.01]
[1673972987790,3.86643431,21168.0,21167.0,0.01]
[1673972988057,3.58359573,21168.0,21167.0,0.01]
[1673972988445,3.866435,21168.0,21167.0,0.01]
[1673972988695,3.58359573,21168.0,21167.0,0.01]
[1673972988933,3.33739302,21168.0,21167.0,0.01]
[1673972989679,3.33739302,21168.0,21161.0,1.46630326]
[1673972989680,0.00396692,21166.0,21161.0,0.99673316]
[1673972989916,0.0762,21162.0,21161.0,0.52416816]
[1673972990157,0.58873495,21162.0,21161.0,0.52416816]
[1673972990411,0.398009,21162.0,21161.0,0.52416816]
[1673972990908,0.321809,21162.0,21161.0,0.99673516]
[1673972991167,0.0762,21164.0,21161.0,1.46930216]
[1673972991415,0.995192,21165.0,21161.0,1.46930216]
[1673972991673,0.70287449,21166.0,21162.0,0.3]
[1673972991918,0.69387449,21166.0,21162.0,1.245064]
[1673972992251,0.009,21164.0,21162.0,1.245064]
[1673972992424,0.00396692,21166.0,21163.0,0.15]
[1673972992668,0.00396692,21166.0,21164.0,0.4725]
[1673972992669,0.01396692,21166.0,21164.0,0.4725]
[1673972992924,0.00396692,21166.0,21164.0,0.4725]
[1673972993177,0.321809,21165.0,21164.0,0.4725]
[1673972993681,0.14540049,21166.0,21164.0,0.4725]
[1673972993928,0.321809,21165.0,21162.0,0.772538]
[1673972994180,0.306113,21164.0,21162.0,0.3]
[1673972994423,0.321809,21163.0,21162.0,0.772545]
[1673972994668,0.19161689,21165.0,21162.0,0.772545]
[1673972994932,0.321809,21164.0,21162.0,0.772545]
[1673972995190,0.321809,21164.0,21162.0,0.94509]
[1673972995438,0.01,21163.0,21162.0,0.472545]
[1673972995686,0.306113,21163.0,21162.0,0.472545]
[1673972996207,1.09474127,21166.0,21162.0,0.94509]
[1673972996428,0.46324257,21165.0,21162.0,0.94509]
[1673972996680,0.306113,21164.0,21162.0,0.94509]
[1673972996921,0.321809,21163.0,21162.0,0.94509]
[1673972997169,0.01,21163.0,21162.0,0.472545]
[1673972997422,0.35358393,21165.0,21162.0,0.472545]
[1673972997673,0.331809,21164.0,21161.0,1.46927616]
[1673972997919,0.306113,21163.0,21161.0,1.46927616]
[1673972998161,0.82608193,21165.0,21161.0,1.46927616]
[1673972998412,0.32269994,21164.0,21161.0,0.52416816]
[1673972998662,0.306113,21163.0,21160.0,0.472568]
[1673972998912,0.321809,21162.0,21160.0,0.945139]
[1673972999153,0.306113,21161.0,21159.0,0.772593]
[1673972999437,0.77394655,21164.0,21160.0,0.945166]
[1673972999689,0.00089094,21163.0,21160.0,0.945166]
[1673972999924,0.321809,21162.0,21160.0,0.945166]
[1673973000176,0.77394355,21164.0,21160.0,0.945166]
[1673973000661,0.330809,21163.0,21160.0,0.472577]
[1673973000910,0.306113,21162.0,21159.0,0.98853334]
[1673973001158,0.321809,21161.0,21159.0,1.46112534]
[1673973001417,0.47341794,21163.0,21159.0,1.020891]
[1673973001655,0.00089094,21162.0,21159.0,0.945191]
[1673973002148,0.321809,21161.0,21159.0,0.945191]
[1673973002388,0.330809,21161.0,21159.0,0.945191]
[1673973002636,0.009,21161.0,21159.0,0.945191]
[1673973002881,0.19972595,21161.0,21158.0,0.47937628]
[1673973003131,0.19972595,21161.0,21158.0,0.47938328]
[1673973003132,0.321809,21160.0,21158.0,0.47938328]
[1673973003375,0.306113,21159.0,21158.0,0.47938328]
[1673973003623,0.5102,21162.0,21158.0,0.95201728]
[1673973003872,0.009,21162.0,21158.0,1.09225162]
[1673973004121,0.0762,21163.0,21158.0,1.09225162]
[1673973004359,0.82609693,21164.0,21159.0,0.3]
[1673973004606,0.35358393,21164.0,21160.0,0.94517]
[1673973004851,0.321809,21163.0,21160.0,0.94517]
[1673973005116,0.315113,21162.0,21160.0,0.94517]
[1673973005359,0.321809,21161.0,21160.0,0.94517]
[1673973005608,0.82608493,21164.0,21160.0,0.94517]
[1673973005865,0.61393457,21164.0,21160.0,0.94517]
[1673973006118,0.321809,21163.0,21159.0,1.26392429]
[1673973006374,0.306113,21162.0,21159.0,1.26392429]
[1673973006629,0.321809,21161.0,21159.0,1.26392429]
[1673973006869,0.67326095,21163.0,21159.0,0.96392429]
[1673973007137,0.321809,21162.0,21159.0,0.96392429]
[1673973007466,0.306113,21161.0,21159.0,0.96392429]
[1673973007717,0.306113,21161.0,21159.0,1.43653629]
[1673973007969,0.481537,21163.0,21159.0,1.43653629]
[1673973008226,1.1550044,21164.0,21160.0,0.3]
[1673973008472,0.00089094,21163.0,21160.0,0.3]
[1673973008712,0.32269994,21163.0,21160.0,0.772569]
[1673973008978,0.009,21161.0,21160.0,0.472569]
[1673973009221,0.00089094,21163.0,21160.0,0.945141]
[1673973009708,0.321809,21162.0,21160.0,0.945141]
[1673973009945,0.00089094,21163.0,21160.0,0.945141]
[1673973010196,0.00074916,21163.0,21160.0,0.472572]
[1673973010434,0.321809,21162.0,21160.0,0.472572]
[1673973010689,0.00074916,21163.0,21159.0,0.49133029]
[1673973010942,0.945093,21162.0,21159.0,0.49133029]
[1673973011201,0.321809,21161.0,21159.0,1.43654829]
[1673973011440,0.306113,21160.0,21159.0,1.43654829]
[1673973011692,0.945103,21162.0,21159.0,0.79133029]
[1673973011933,0.945103,21162.0,21159.0,0.49133029]
[1673973012167,0.321809,21161.0,21159.0,0.96394129]
[1673973012417,0.306113,21160.0,21159.0,0.96394129]
[1673973012661,0.315113,21160.0,21159.0,0.96394129]
[1673973012920,0.009,21160.0,21159.0,0.96394129]
[1673973013183,0.009,21160.0,21159.0,1.43655329]
[1673973013672,0.009,21160.0,21159.0,1.26412056]
[1673973013927,0.66325395,21163.0,21159.0,1.26412156]
[1673973014195,0.009,21161.0,21159.0,0.96412156]
[1673973014439,0.321809,21160.0,21159.0,0.96412156]
[1673973014685,0.15,21162.0,21159.0,0.96394229]
[1673973014938,0.009,21160.0,21159.0,0.49133029]
[1673973015212,0.315113,21160.0,21159.0,0.49150956]
[1673973015471,0.315113,21160.0,21159.0,0.49133029]
[1673973015718,0.787702,21160.0,21158.0,0.00676228]
[1673973015988,0.321809,21159.0,21158.0,0.00676228]
[1673973016249,0.321809,21159.0,21158.0,0.95201528]
[1673973016517,0.32124028,21159.0,21158.0,0.95201528]
[1673973016994,0.009,21160.0,21158.0,0.95201528]
[1673973017237,2.3261034,21162.0,21158.0,0.95201528]
[1673973017481,0.009,21159.0,21158.0,0.95201528]
[1673973017728,0.15074917,21161.0,21158.0,0.95201528]
[1673973017986,0.15074917,21161.0,21158.0,0.47938128]
[1673973017987,0.32184,21160.0,21158.0,0.47938128]
[1673973018238,0.305509,21159.0,21158.0,0.47938128]
[1673973018516,0.15074917,21161.0,21158.0,0.47939628]
[1673973018739,0.32184,21160.0,21158.0,0.00676228]
[1673973018980,0.305509,21159.0,21158.0,0.95202828]
[1673973019228,0.009,21160.0,21158.0,0.95202828]
[1673973020670,0.009,21160.0,21158.0,0.00676228]
[1673973021173,0.009,21160.0,21158.0,0.77939528]
[1673973021698,0.009,21160.0,21158.0,1.25202928]
[1673973023333,0.009,21160.0,21159.0,0.84413831]
[1673973023584,0.009,21160.0,21159.0,2.55893241]
[1673973023867,0.009,21160.0,21159.0,2.23809665]
[1673973024126,0.009,21160.0,21159.0,2.70753021]
[1673973024367,0.35358393,21166.0,21159.0,2.8483747]
[1673973024608,0.14143357,21167.0,21161.0,0.4267584]
[1673973024859,0.14143357,21167.0,21162.0,2.5089911]
[1673973025115,0.14143357,21167.0,21162.0,2.1871511]
[1673973025358,0.35358393,21167.0,21162.0,2.1871511]
[1673973025618,0.14143357,21167.0,21163.0,0.41391494]
[1673973025864,0.14143357,21167.0,21164.0,1.244992]
[1673973026169,0.64533286,21169.0,21164.0,1.7907621]
[1673973026358,0.64533286,21169.0,21166.0,0.0762]
[1673973026359,0.15031536,21169.0,21166.0,0.0762]
[1673973026607,0.15031536,21169.0,21167.0,0.472433]
[1673973026848,0.15031536,21169.0,21167.0,0.944866]
[1673973026849,0.00888179,21169.0,21167.0,0.944866]
[1673973027841,0.00888179,21169.0,21168.0,0.3]
[1673973028093,0.00888179,21169.0,21168.0,1.88312658]
[1673973028094,0.08488179,21169.0,21168.0,1.88312658]
[1673973028336,0.00888179,21169.0,21168.0,2.67453668]
[1673973028578,0.07688179,21169.0,21168.0,2.81528985]
[1673973028829,0.00888179,21169.0,21168.0,2.81528985]
[1673973029346,0.00888179,21169.0,21168.0,2.67453668]
[1673973029590,0.00888179,21169.0,21168.0,2.81528985]
[1673973029831,0.07688179,21169.0,21168.0,2.81728985]
[1673973030088,0.00888179,21169.0,21168.0,2.81528985]
[1673973030328,0.01588179,21169.0,21168.0,3.91613497]
[1673973030581,0.00351104,21169.0,21168.0,4.4002571]
[1673973030834,0.00351104,21169.0,21168.0,4.40043629]
[1673973031093,0.00351104,21169.0,21168.0,3.61337111]
[1673973031334,0.00351104,21169.0,21168.0,3.47321756]
[1673973031582,0.00351104,21169.0,21168.0,3.61337111]
[1673973032073,0.00351104,21169.0,21168.0,3.97650117]
[1673973032308,0.00351104,21169.0,21168.0,3.61337495]
[1673973032591,0.00351104,21169.0,21168.0,3.90641075]
[1673973032840,4e-08,21169.0,21168.0,3.76625336]
[1673973033084,0.0040603,21170.0,21168.0,3.76625336]
[1673973033340,0.01579539,21171.0,21169.0,2.34392504]
[1673973033581,0.01410963,21173.0,21170.0,3.57740979]
[1673973033822,0.01410963,21173.0,21172.0,0.1515]
[1673973034065,0.01410963,21173.0,21172.0,3.13707479]
[1673973034310,0.01410963,21173.0,21172.0,3.14557479]
[1673973035550,0.01410963,21173.0,21172.0,2.6598731]
[1673973035798,0.01410963,21173.0,21172.0,3.2251941]
[1673973036034,0.01410963,21173.0,21172.0,3.66103116]
[1673973036272,0.01410963,21173.0,21172.0,4.23023285]
[1673973037606,0.01410963,21173.0,21172.0,2.90766106]
[1673973038115,0.01410963,21173.0,21172.0,2.43534006]
[1673973038617,0.01410963,21173.0,21172.0,2.11350006]
[1673973038854,0.01410963,21173.0,21172.0,2.02150006]
[1673973039102,0.01410963,21173.0,21172.0,1.036642]
[1673973039378,0.01410963,21173.0,21172.0,0.944642]
[1673973039591,0.01410963,21173.0,21172.0,1.036702]
[1673973039837,0.01410963,21173.0,21172.0,0.944702]
[1673973040083,0.01410963,21173.0,21172.0,1.036702]
[1673973040321,0.01410963,21173.0,21172.0,0.472381]
[1673973040561,0.01410963,21173.0,21172.0,1.036702]
[1673973041052,0.01410963,21173.0,21172.0,1.412902]
[1673973041297,0.01410963,21173.0,21172.0,2.2043121]
[1673973041545,0.01410963,21173.0,21172.0,1.734742]
[1673973041791,0.01410963,21173.0,21172.0,2.1123121]
[1673973042038,0.01410963,21173.0,21172.0,1.734742]
[1673973042272,0.01410963,21173.0,21172.0,1.792742]
[1673973042552,0.01410963,21173.0,21172.0,1.884682]
[1673973042793,0.01410963,21173.0,21172.0,2.3384521]
[1673973043051,0.01410963,21173.0,21172.0,2.4304521]
[1673973043336,0.01410963,21173.0,21172.0,2.3384521]
[1673973043593,0.01410963,21173.0,21172.0,1.810882]
[1673973043848,0.01410963,21173.0,21172.0,1.718882]
[1673973044599,0.01410963,21173.0,21172.0,1.868882]
[1673973045269,0.01410963,21173.0,21172.0,1.810882]
[1673973045832,0.01410963,21173.0,21172.0,2.4304521]
[1673973046319,0.01410963,21173.0,21172.0,1.960882]
[1673973046566,0.01410963,21173.0,21172.0,1.810882]
[1673973047308,0.01410963,21173.0,21172.0,1.960882]
[1673973047799,0.01410963,21173.0,21172.0,2.4304521]
[1673973048304,0.00910963,21173.0,21172.0,2.90765379]
[1673973049050,0.00910963,21173.0,21172.0,2.91615379]
[1673973049814,2.328e-05,21173.0,21172.0,3.20575379]
[1673973050549,0.01255659,21177.0,21173.0,6e-05]
[1673973050792,0.01410963,21178.0,21176.0,0.4422]
[1673973051035,0.01410963,21178.0,21177.0,3.54195179]
[1673973051290,0.0001,21180.0,21178.0,0.15]
[1673973051553,0.0001,21180.0,21179.0,2.22403669]
[1673973051800,0.0001,21180.0,21179.0,2.87167627]
[1673973052292,0.0001,21180.0,21179.0,3.49541116]
[1673973052547,0.0092318,21182.0,21180.0,0.4396]
[1673973052847,0.0092318,21182.0,21181.0,1.889803]
[1673973053090,0.0092318,21182.0,21181.0,2.114403]
[1673973053585,0.0092318,21182.0,21181.0,1.792563]
[1673973054323,0.0102318,21182.0,21181.0,1.792563]
[1673973054578,0.0092318,21182.0,21181.0,1.320442]
[1673973054820,0.0102318,21182.0,21181.0,1.87074208]
[1673973055062,0.0102318,21182.0,21181.0,1.39862108]
[1673973055568,0.0102318,21182.0,21181.0,1.09862108]
[1673973055810,0.0102318,21182.0,21181.0,1.39862108]
[1673973056063,0.0102318,21182.0,21181.0,0.078]
[1673973056064,0.20170692,21182.0,21181.0,0.078]
[1673973056305,0.40842097,21182.0,21181.0,0.078]
[1673973057298,0.4066718,21182.0,21181.0,0.472121]
[1673973057581,0.3310718,21182.0,21180.0,0.472123]
[1673973057832,0.295509,21181.0,21180.0,0.472122]
[1673973058076,0.0302318,21182.0,21180.0,0.772122]
[1673973058327,0.32184,21181.0,21180.0,0.472122]
[1673973058809,0.34284,21181.0,21180.0,0.478122]
[1673973059299,0.34284,21181.0,21180.0,0.950265]
[1673973059539,0.021,21181.0,21180.0,0.306]
[1673973060033,0.021,21181.0,21180.0,1.250286]
[1673973060304,0.021,21181.0,21180.0,0.006]
[1673973060834,0.34358917,21181.0,21180.0,0.006]
[1673973061326,0.34358917,21181.0,21180.0,0.950286]
[1673973061583,0.021,21181.0,21180.0,0.950286]
[1673973061918,0.021,21181.0,21180.0,1.250346]
[1673973062890,0.021,21181.0,21180.0,0.950346]
[1673973063157,0.021,21181.0,21180.0,1.250346]
[1673973063390,0.021,21181.0,21180.0,0.950346]
[1673973063632,0.021,21181.0,21180.0,1.250346]
[1673973064403,0.021,21181.0,21180.0,1.75340366]
[1673973064641,0.021,21181.0,21180.0,2.61443665]
[1673973064878,0.021,21181.0,21180.0,2.58858068]
[1673973065150,0.021,21181.0,21180.0,3.1126774]
[1673973065401,0.021,21181.0,21180.0,3.15970645]
[1673973065644,0.0092318,21182.0,21180.0,3.36403332]
[1673973065883,0.0092318,21182.0,21181.0,0.62184]
[1673973066133,0.0092318,21182.0,21181.0,1.791882]
[1673973066379,0.0092318,21182.0,21181.0,2.65714495]
[1673973066380,8e-07,21182.0,21181.0,2.65714495]
[1673973066625,0.01512338,21190.0,21182.0,0.15962337]
[1673973066864,0.5302,21189.0,21184.0,1.416135]
[1673973067112,0.01512338,21190.0,21186.0,0.15]
[1673973067369,0.01512338,21190.0,21187.0,0.943966]
[1673973067951,0.20584933,21190.0,21187.0,0.471983]
[1673973068199,0.32184,21189.0,21187.0,0.471987]
[1673973068430,0.32184,21189.0,21186.0,1.00892379]
[1673973068710,0.32184,21189.0,21187.0,0.006]
[1673973068711,0.295509,21188.0,21187.0,0.006]
[1673973068957,0.295509,21188.0,21186.0,1.00894379]
[1673973069235,0.32184,21187.0,21186.0,1.00912283]
[1673973069505,0.32184,21187.0,21184.0,0.472035]
[1673973069746,0.295509,21186.0,21183.0,0.472057]
[1673973069994,0.32184,21185.0,21184.0,0.944108]
[1673973070276,1.54195,21188.0,21183.0,0.94364401]
[1673973070510,1.73268895,21188.0,21183.0,1.41572001]
[1673973070768,0.32184,21187.0,21184.0,0.3]
[1673973070996,0.00074917,21187.0,21184.0,0.772042]
[1673973071245,0.32184,21186.0,21184.0,1.292096]
[1673973071519,0.001,21187.0,21184.0,1.292096]
[1673973071986,0.598,21188.0,21184.0,1.244096]
[1673973072234,0.0762,21186.0,21184.0,0.944096]
[1673973072480,0.295509,21185.0,21184.0,0.944108]
[1673973072739,0.97502612,21188.0,21184.0,0.944108]
[1673973072991,0.78430017,21188.0,21184.0,0.944108]
[1673973073254,0.32184,21187.0,21184.0,0.944108]
[1673973073497,0.295509,21186.0,21184.0,0.944108]
[1673973073744,0.78430017,21188.0,21184.0,0.944108]
[1673973074000,0.001,21186.0,21184.0,0.992108]
[1673973074719,0.001,21186.0,21184.0,0.520054]
[1673973075013,0.00174917,21186.0,21184.0,0.520054]
[1673973075511,0.32184,21185.0,21184.0,0.520054]
[1673973076017,0.00174917,21186.0,21184.0,0.520054]
[1673973076271,0.32184,21185.0,21184.0,0.520054]
[1673973076553,0.001,21186.0,21184.0,0.520054]
[1673973076554,0.001,21186.0,21184.0,1.292108]
[1673973076763,0.001,21186.0,21184.0,0.992108]
[1673973077009,0.001,21186.0,21185.0,0.45508518]
[1673973077254,0.001,21186.0,21185.0,1.69914918]
[1673973077739,0.5224,21188.0,21185.0,1.69914918]
[1673973078231,0.5224,21188.0,21186.0,0.3]
[1673973078470,0.5224,21188.0,21186.0,0.944006]
[1673973078737,0.32184,21187.0,21186.0,0.944006]
[1673973079001,0.32184,21187.0,21185.0,0.47201]
[1673973079247,0.0762,21186.0,21185.0,0.47201]
[1673973079497,0.39804,21186.0,21185.0,0.47201]
[1673973080474,0.39804,21186.0,21184.0,0.472037]
[1673973080475,0.32184,21186.0,21184.0,0.472035]
[1673973080738,0.295509,21185.0,21184.0,0.472035]
[1673973080977,0.0762,21188.0,21184.0,1.244089]
[1673973081217,0.02,21186.0,21185.0,0.001]
[1673973081469,0.02,21186.0,21185.0,0.472027]
[1673973081470,0.32184,21186.0,21185.0,0.472027]
[1673973081989,0.32184,21186.0,21185.0,0.944059]
[1673973082217,0.0762,21188.0,21185.0,0.944059]
[1673973082218,0.0762,21188.0,21185.0,1.244059]
[1673973082474,0.0762,21188.0,21186.0,0.3]
[1673973082720,0.0762,21188.0,21185.0,0.473027]
[1673973083056,0.32184,21187.0,21185.0,0.001]
[1673973083334,0.295509,21186.0,21185.0,0.301]
[1673973083599,0.295509,21186.0,21185.0,0.77303]
[1673973083850,0.295509,21186.0,21185.0,1.244062]
[1673973084104,0.0762,21188.0,21185.0,1.244062]
[1673973084359,0.32184,21187.0,21185.0,1.245062]
[1673973084634,0.315509,21186.0,21185.0,1.245062]
[1673973085134,0.315509,21186.0,21185.0,0.945062]
[1673973085396,0.295509,21186.0,21185.0,0.472032]
[1673973085646,0.295509,21186.0,21185.0,0.473032]
[1673973085919,0.29625817,21186.0,21185.0,0.473032]
[1673973086167,0.295509,21186.0,21185.0,0.473032]
[1673973086421,0.295509,21186.0,21185.0,0.773032]
[1673973086707,0.295509,21186.0,21185.0,0.473032]
[1673973086935,0.295509,21186.0,21185.0,0.772032]
[1673973087208,0.315509,21186.0,21185.0,1.245064]
[1673973087455,0.315509,21186.0,21185.0,0.473032]
[1673973088748,0.315509,21186.0,21185.0,0.47294914]
[1673973089834,0.315509,21186.0,21185.0,0.94498114]
[1673973090367,0.315509,21186.0,21185.0,0.47294914]
[1673973091485,0.315509,21186.0,21185.0,0.94498114]
[1673973091739,0.315509,21186.0,21185.0,1.24498114]
[1673973091991,0.02,21186.0,21185.0,1.24498114]
[1673973093523,0.02,21186.0,21185.0,0.94498114]
[1673973094785,0.34184,21186.0,21185.0,0.94498114]
[1673973095034,0.02,21186.0,21185.0,0.94498114]
[1673973095287,0.34184,21186.0,21185.0,0.94498114]
[1673973095529,0.02,21186.0,21185.0,0.94498114]
[1673973095784,0.02,21186.0,21185.0,1.24498114]
[1673973096561,0.11603917,21186.0,21185.0,0.47294914]
[1673973096826,0.43787917,21186.0,21185.0,0.001]
[1673973097336,0.34184,21186.0,21185.0,0.001]
[1673973098464,0.34184,21186.0,21185.0,0.945064]
[1673973098623,0.34184,21186.0,21185.0,0.001]
[1673973100394,0.55886693,21186.0,21185.0,0.001]
[1673973100642,1.24210602,21186.0,21185.0,0.001]
[1673973100886,1.57328809,21186.0,21185.0,0.001]
[1673973101144,1.71463341,21186.0,21185.0,0.001]
[1673973101408,1.57328809,21186.0,21185.0,0.001]
[1673973101666,1.69462222,21186.0,21182.0,0.944182]
[1673973101910,0.30592595,21186.0,21185.0,0.005]
[1673973102162,1.381084,21186.0,21185.0,0.005]
[1673973102674,1.381084,21186.0,21182.0,1.46741854]
[1673973102675,1.48341813,21186.0,21182.0,1.46741854]
[1673973102957,0.295509,21185.0,21182.0,1.46741854]
[1673973103219,0.32184,21184.0,21182.0,1.46741854]
[1673973103497,0.295509,21183.0,21182.0,1.46741854]
[1673973103714,0.22053413,21186.0,21182.0,1.82041854]
[1673973103964,0.0762,21186.0,21182.0,1.46741854]
[1673973104210,0.32484,21185.0,21182.0,1.52041854]
[1673973104466,0.295509,21184.0,21182.0,1.46741854]
[1673973104712,0.003,21183.0,21182.0,1.52041854]
[1673973104958,0.0762,21186.0,21182.0,1.76741854]
[1673973105212,0.22053413,21186.0,21183.0,0.3]
[1673973105458,0.0762,21186.0,21184.0,0.472054]
[1673973105707,0.0762,21186.0,21184.0,0.944108]
[1673973105708,0.32184,21185.0,21184.0,0.944108]
[1673973105949,0.32184,21185.0,21184.0,1.244108]
[1673973106197,0.0762,21186.0,21184.0,0.944108]
[1673973106470,0.42876422,21187.0,21184.0,0.944108]
[1673973106727,0.003,21186.0,21185.0,0.3]
[1673973106977,0.42836422,21189.0,21185.0,1.244064]
[1673973107225,0.011,21186.0,21185.0,1.244064]
[1673973107470,0.14133413,21188.0,21185.0,1.244064]
[1673973107732,0.42836422,21189.0,21185.0,1.244064]
[1673973107981,0.039,21186.0,21185.0,1.249064]
[1673973108490,0.14133413,21189.0,21185.0,1.244064]
[1673973108738,0.35256422,21189.0,21185.0,1.244064]
[1673973109496,0.14133413,21189.0,21185.0,1.244064]
[1673973109746,0.32184,21188.0,21185.0,1.249064]
[1673973110001,0.18033413,21189.0,21185.0,1.249064]
[1673973111025,0.18033413,21189.0,21185.0,1.721096]
[1673973111278,0.18033413,21189.0,21186.0,0.50980695]
[1673973111530,0.039,21189.0,21187.0,2.037801]
[1673973111782,0.039,21189.0,21187.0,1.715961]
[1673973112033,0.03889873,21189.0,21187.0,1.715961]
[1673973112302,0.01512338,21190.0,21187.0,1.715961]
[1673973112549,0.01512338,21190.0,21187.0,1.720961]
[1673973112803,0.039,21189.0,21187.0,1.720961]
[1673973113289,0.01512338,21190.0,21187.0,1.715961]
[1673973113789,0.01512338,21190.0,21187.0,1.720961]
[1673973113790,0.05412338,21190.0,21187.0,1.720961]
[1673973114036,0.05412338,21190.0,21187.0,1.420961]
[1673973114296,0.01512338,21190.0,21187.0,1.415961]
[1673973114547,0.039,21189.0,21187.0,1.420961]
[1673973115040,0.039,21189.0,21187.0,1.892948]
[1673973115289,0.039,21189.0,21188.0,0.3]
[1673973115536,0.00074917,21189.0,21188.0,1.24393]
[1673973115793,0.05412338,21190.0,21188.0,1.24393]
[1673973116040,0.01512338,21190.0,21188.0,0.94393]
[1673973116293,0.039,21189.0,21188.0,0.94393]
[1673973116550,0.039,21189.0,21186.0,1.45379495]
[1673973116551,0.00074917,21189.0,21186.0,1.45379495]
[1673973116807,0.23047512,21189.0,21188.0,0.005]
[1673973117055,0.23047512,21189.0,21188.0,0.94393]
[1673973117056,0.32258917,21189.0,21188.0,0.94393]
[1673973117313,0.2504667,21190.0,21188.0,0.94893]
[1673973117575,0.32184,21189.0,21188.0,0.94893]
[1673973117828,0.32184,21189.0,21188.0,1.24393]
[1673973118068,0.2114667,21190.0,21188.0,1.24393]
[1673973118320,0.2114667,21190.0,21189.0,0.3]
[1673973118566,0.2114667,21190.0,21189.0,1.243884]
[1673973118818,0.00281456,21190.0,21189.0,1.243884]
[1673973119337,0.04181456,21190.0,21189.0,1.248884]
[1673973120086,0.04181456,21190.0,21189.0,1.570724]
[1673973120569,0.04181456,21190.0,21189.0,1.248884]
[1673973122392,0.04181456,21190.0,21189.0,0.948884]
[1673973122912,0.36365456,21190.0,21189.0,0.948884]
[1673973123167,1.44552751,21190.0,21189.0,0.005]
[1673973123416,1.58538743,21190.0,21189.0,0.005]
[1673973123669,1.72672156,21190.0,21189.0,0.005]
[1673973123926,0.36365456,21190.0,21189.0,1.044154]
[1673973124169,0.04181456,21190.0,21189.0,1.044154]
[1673973124935,0.04256373,21190.0,21189.0,1.044154]
[1673973125197,0.04256373,21190.0,21189.0,0.948884]
[1673973125198,0.36440373,21190.0,21189.0,0.948884]
[1673973125452,0.44060373,21190.0,21189.0,0.005]
[1673973125947,0.44060373,21190.0,21189.0,0.476942]
[1673973125948,0.36365456,21190.0,21189.0,0.476942]
[1673973126466,1.70206709,21193.0,21192.0,13.26844303]
[1673973126467,1.98370792,21193.0,21192.0,13.26844303]
[1673973126717,1.51280792,21193.0,21192.0,13.26844303]
[1673973126969,1.30157783,21193.0,21192.0,13.26844303]
[1673973127241,2.07455321,21193.0,21192.0,13.26844303]
[1673973127535,2.07455321,21193.0,21192.0,12.33907933]
[1673973127536,2.39347098,21193.0,21192.0,12.33907933]
[1673973128309,2.39347098,21193.0,21192.0,12.34707933]
[1673973128310,2.81864771,21193.0,21192.0,12.34707933]
[1673973128554,3.59225828,21193.0,21192.0,12.34707933]
[1673973128887,3.29225837,21193.0,21192.0,12.34707933]
[1673973129093,2.82010577,21193.0,21192.0,12.34707933]
[1673973129329,2.82085494,21193.0,21192.0,12.34707933]
[1673973129583,4.61289957,21193.0,21192.0,11.37467933]
[1673973129835,5.81729428,21193.0,21192.0,8.61267881]
[1673973130606,5.49749428,21193.0,21192.0,8.61267881]
[1673973130855,6.17048737,21193.0,21192.0,8.61267881]
[1673973131113,6.93281599,21193.0,21192.0,5.0663994]
[1673973131360,6.93281599,21193.0,21192.0,3.7215464]
[1673973131361,7.30574599,21193.0,21192.0,3.7215464]
[1673973131608,7.30574599,21193.0,21192.0,2.7326074]
[1673973131609,7.18075638,21193.0,21192.0,2.7326074]
[1673973131876,7.31675638,21193.0,21192.0,2.7326074]
[1673973132145,6.23249413,21193.0,21192.0,1.7828634]
[1673973132393,6.36949413,21193.0,21192.0,1.7828634]
[1673973132647,6.23249413,21193.0,21192.0,1.7828634]
[1673973132965,6.36949413,21193.0,21192.0,1.7828634]
[1673973133209,0.8719716,21192.0,21178.0,0.472175]
[1673973133495,0.0762,21182.0,21178.0,0.472175]
[1673973133748,0.0762,21180.0,21177.0,0.43119307]
[1673973134197,0.26632595,21179.0,21177.0,0.43119307]
[1673973134448,0.48627795,21178.0,21177.0,0.43119307]
[1673973134701,0.26294814,21179.0,21177.0,0.43119307]
[1673973134966,0.07070416,21179.0,21176.0,0.00535896]
[1673973135229,0.2580523,21179.0,21177.0,0.001]
[1673973135501,0.2580523,21179.0,21176.0,0.00535896]
[1673973135502,0.07070416,21179.0,21176.0,0.00535896]
[1673973135747,0.07070416,21179.0,21177.0,0.001]
[1673973135748,0.017,21178.0,21177.0,0.001]
[1673973136002,0.07070416,21179.0,21176.0,0.00535896]
[1673973136273,0.07070416,21179.0,21176.0,0.01235896]
[1673973136274,0.07770416,21179.0,21176.0,0.01235896]
[1673973136757,1.2093883,21179.0,21176.0,0.01235896]
[1673973136763,1.02204016,21179.0,21176.0,0.01235896]
[1673973137532,0.54986916,21179.0,21176.0,0.01235896]
[1673973137802,1.02203416,21179.0,21176.0,0.01235896]
[1673973138085,0.0755,21177.0,21176.0,0.01235896]
[1673973138861,0.0755,21177.0,21176.0,0.00535896]
[1673973139140,0.0755,21177.0,21176.0,0.00635896]
[1673973139141,0.0915,21177.0,21176.0,0.00635896]
[1673973139410,0.0755,21177.0,21176.0,0.00535896]
[1673973139944,1.10462,21177.0,21176.0,0.00535896]
[1673973140691,1.19162,21177.0,21176.0,0.00535896]
[1673973140951,1.10462,21177.0,21176.0,0.00535896]
[1673973141210,1.2200604,21177.0,21176.0,0.00535896]
[1673973141491,2.33258013,21177.0,21176.0,0.00535896]
[1673973141756,2.42258013,21177.0,21176.0,0.00535896]
[1673973142294,1.84726209,21177.0,21176.0,0.00535896]
[1673973142553,1.25462,21177.0,21176.0,0.00535896]
[1673973143091,2.21713973,21177.0,21176.0,0.00535896]
[1673973143362,2.89703973,21177.0,21176.0,5.896e-05]
[1673973143634,0.16335589,21176.0,21175.0,0.00557312]
[1673973143891,2.23093962,21176.0,21175.0,0.00557312]
[1673973144907,1.20853594,21176.0,21175.0,0.00557312]
[1673973145165,1.13233594,21176.0,21175.0,0.00557312]
[1673973146214,1.13233594,21176.0,21175.0,0.29156907]
[1673973146215,0.638132,21176.0,21175.0,0.29156907]